bitfinex-derivatives/quotes_SOLF0:USTF0_20250705
["timestamp","ask_amount","ask_price","bid_price","bid_amount"]
[1751745056920,3.0184574,146.94,146.92,6.8047]
[1751745057424,9.8223574,146.94,146.92,6.8047]
[1751745057722,9.8223574,146.94,146.91,6.805]
[1751745060033,9.8219574,146.95,146.92,6.8046]
[1751745061133,8.53366081,146.94,146.92,6.8046]
[1751745061336,9.8219574,146.95,146.92,6.8046]
[1751745061533,8.53366081,146.94,146.92,6.8046]
[1751745061734,6.8039,146.94,146.91,9.8234574]
[1751745062038,9.8223574,146.94,146.91,6.805]
[1751745062332,6.8038,146.95,146.91,6.8051]
[1751745062532,9.8222574,146.95,146.91,6.8051]
[1751745063524,9.8222574,146.95,146.91,9.8235574]
[1751745063835,9.8222574,146.95,146.91,6.8051]
[1751745064034,6.8039,146.94,146.91,9.8235574]
[1751745069641,6.8039,146.94,146.91,6.8051]
[1751745069836,3.0184574,146.94,146.9,3.0184574]
[1751745070340,9.8225574,146.94,146.91,6.8049]
[1751745073541,6.8041,146.94,146.92,6.8047]
[1751745073740,9.8225574,146.94,146.92,6.8047]
[1751745074040,6.8041,146.94,146.92,6.8047]
[1751745074241,9.8220574,146.95,146.92,6.8047]
[1751745074445,9.71730097,146.94,146.92,6.8047]
[1751745074646,9.8220574,146.95,146.92,6.8047]
[1751745074947,9.71730097,146.94,146.92,6.8047]
[1751745075143,9.8220574,146.95,146.92,6.8047]
[1751745075340,18.25825574,146.94,146.92,6.8047]
[1751745075543,9.8220574,146.95,146.92,6.8047]
[1751745075742,8.53945834,146.94,146.92,6.8047]
[1751745075945,9.8220574,146.95,146.92,6.8047]
[1751745076850,4.64676693,146.94,146.92,6.8047]
[1751745077051,9.8220574,146.95,146.92,6.8047]
[1751745077350,13.18688708,146.94,146.92,6.8047]
[1751745077648,9.8220574,146.95,146.92,6.8047]
[1751745077949,13.18711454,146.94,146.92,6.8047]
[1751745078148,9.8220574,146.95,146.92,6.8047]
[1751745078340,19.99225097,146.94,146.92,6.8047]
[1751745078540,3.0184574,146.93,146.89,46.32]
[1751745078747,9.8239574,146.91,146.89,46.32]
[1751745079752,6.8055,146.91,146.89,46.32]
[1751745080652,9.8233574,146.92,146.89,53.1259]
[1751745080851,9.8233574,146.92,146.89,49.3384574]
[1751745081551,9.8233574,146.92,146.9,6.8056]
[1751745082051,9.8233574,146.92,146.89,53.126]
[1751745082253,8.54849453,146.91,146.89,46.32]
[1751745082552,9.8233574,146.92,146.89,46.32]
[1751745082752,8.54904542,146.91,146.89,46.32]
[1751745083046,9.8233574,146.92,146.89,46.32]
[1751745083253,8.5506347,146.91,146.89,46.32]
[1751745083448,9.8233574,146.92,146.89,46.32]
[1751745083650,8.55115891,146.91,146.9,6.8057]
[1751745083956,8.55115891,146.91,146.89,46.32]
[1751745084251,9.8233574,146.92,146.89,53.1259]
[1751745084452,13.16125134,146.91,146.89,53.1259]
[1751745084651,3.0184574,146.92,146.89,53.1259]
[1751745084852,4.60777364,146.91,146.89,53.1259]
[1751745085152,3.0184574,146.92,146.89,53.1259]
[1751745085352,9.66316042,146.91,146.89,53.1259]
[1751745085542,3.0184574,146.92,146.89,53.1259]
[1751745085743,9.66316042,146.91,146.89,53.1259]
[1751745085942,3.0184574,146.92,146.89,53.1259]
[1751745086144,4.60917587,146.91,146.89,53.1259]
[1751745086343,3.0184574,146.92,146.89,53.1259]
[1751745086547,9.65388577,146.91,146.89,53.1259]
[1751745086850,9.8233574,146.92,146.89,53.1259]
[1751745087057,18.18554393,146.91,146.89,53.1259]
[1751745087250,9.8233574,146.92,146.89,53.1259]
[1751745087446,18.19247592,146.91,146.89,53.1259]
[1751745087649,9.8233574,146.92,146.89,53.1259]
[1751745087851,18.19203611,146.91,146.89,53.1259]
[1751745088052,9.8233574,146.92,146.89,53.1259]
[1751745088253,18.19352428,146.91,146.89,53.1259]
[1751745088453,9.8233574,146.92,146.89,53.1259]
[1751745088653,18.19514341,146.91,146.89,53.1259]
[1751745088956,8.53613148,146.9,146.89,53.1259]
[1751745089954,8.53613148,146.9,146.89,56.1443574]
[1751745090259,3.0184574,146.94,146.91,6.805]
[1751745090452,18.20001819,146.93,146.91,6.805]
[1751745090652,8.53850176,146.92,146.91,6.805]
[1751745091357,13.1536268,146.92,146.91,6.805]
[1751745093760,8.53850176,146.92,146.91,6.805]
[1751745094258,13.58815983,146.92,146.9,9.8239574]
[1751745094464,9.66691106,146.91,146.9,9.8239574]
[1751745094761,18.22958804,146.91,146.9,9.8239574]
[1751745095261,18.22958804,146.91,146.89,46.32]
[1751745095462,3.0184574,146.92,146.89,46.32]
[1751745095762,21.25021238,146.91,146.89,46.32]
[1751745096061,18.23401606,146.9,146.89,46.32]
[1751745096662,18.23401606,146.9,146.89,53.1261]
[1751745096957,18.23394503,146.9,146.89,53.1261]
[1751745098665,18.23394503,146.9,146.89,46.32]
[1751745102566,18.22264797,146.9,146.89,46.32]
[1751745103170,18.22264797,146.9,146.88,6.8064]
[1751745103466,6.8055,146.91,146.88,6.8064]
[1751745103766,18.18679712,146.9,146.88,6.8064]
[1751745103965,6.8055,146.91,146.88,6.8064]
[1751745104164,18.18678601,146.9,146.88,6.8064]
[1751745104360,6.8055,146.91,146.88,6.8064]
[1751745104558,18.19077824,146.9,146.88,6.8064]
[1751745104766,6.8055,146.91,146.88,6.8064]
[1751745105067,18.19077824,146.9,146.88,6.8064]
[1751745105260,6.8055,146.91,146.88,6.8064]
[1751745105461,18.19072963,146.9,146.88,6.8064]
[1751745105660,6.8055,146.91,146.88,6.8064]
[1751745105868,18.19072963,146.9,146.88,6.8064]
[1751745106072,6.8055,146.91,146.88,6.8064]
[1751745106269,18.19072071,146.9,146.88,6.8064]
[1751745106469,6.8055,146.91,146.88,6.8064]
[1751745106670,18.19076223,146.9,146.88,6.8064]
[1751745106870,6.8055,146.91,146.88,6.8064]
[1751745107069,18.19078751,146.9,146.88,6.8064]
[1751745107269,6.8055,146.91,146.88,6.8064]
[1751745107467,18.19093992,146.9,146.88,6.8064]
[1751745107668,6.8055,146.91,146.88,6.8064]
[1751745107967,18.19093992,146.9,146.88,6.8064]
[1751745108167,6.8055,146.91,146.88,6.8064]
[1751745108368,18.20044988,146.9,146.88,6.8064]
[1751745108668,6.8055,146.91,146.88,6.8064]
[1751745108865,18.20044988,146.9,146.88,6.8064]
[1751745109065,6.8055,146.91,146.88,6.8064]
[1751745109266,18.20075004,146.9,146.88,6.8064]
[1751745109467,6.8055,146.91,146.88,6.8064]
[1751745109667,18.20089712,146.9,146.88,6.8064]
[1751745109863,6.8062,146.89,146.86,207.16304803]
[1751745110075,8.5527141,146.88,146.86,195.64]
[1751745110267,8.5527141,146.87,146.85,51.03594803]
[1751745110468,9.54339929,146.91,146.86,195.64]
[1751745110671,20.63681511,146.9,146.86,195.64]
[1751745110872,20.63681511,146.89,146.86,195.64]
[1751745111073,18.22064453,146.88,146.86,195.64]
[1751745111274,6.8055,146.91,146.86,195.64]
[1751745111476,20.63670084,146.9,146.86,195.64]
[1751745111774,18.22098683,146.89,146.86,195.64]
[1751745111974,8.55134561,146.88,146.86,195.64]
[1751745112276,6.8055,146.91,146.88,6.8064]
[1751745112471,20.66023212,146.9,146.88,6.8064]
[1751745112677,18.24296949,146.89,146.88,6.8064]
[1751745113178,9.69208322,146.89,146.88,6.8064]
[1751745113774,6.8049,146.92,146.88,6.8064]
[1751745114083,20.64983647,146.91,146.88,6.8064]
[1751745114372,18.23280161,146.9,146.88,6.8064]
[1751745114577,6.8053,146.91,146.88,6.8064]
[1751745114778,18.23381072,146.9,146.88,6.8064]
[1751745114976,6.8053,146.91,146.88,6.8064]
[1751745115177,18.23381072,146.9,146.88,6.8064]
[1751745115478,6.8053,146.91,146.88,6.8064]
[1751745115685,18.23423124,146.9,146.88,6.8064]
[1751745115873,6.8053,146.91,146.88,6.8064]
[1751745116171,18.23423124,146.9,146.88,6.8064]
[1751745116371,6.805,146.92,146.89,6.806]
[1751745116571,20.65202509,146.91,146.89,6.806]
[1751745116778,18.2347182,146.9,146.89,6.806]
[1751745118779,18.2347182,146.9,146.88,9.82446589]
[1751745118975,8.54237927,146.89,146.88,9.82446589]
[1751745119576,8.54237927,146.89,146.88,3.01806589]
[1751745120284,8.54237927,146.89,146.87,195.64]
[1751745120476,13.16566143,146.88,146.87,195.64]
[1751745123284,18.25130605,146.88,146.87,195.64]
[1751745125386,18.26276335,146.88,146.87,195.64]
[1751745126389,18.26276335,146.88,146.87,202.4471]
[1751745126692,13.17711873,146.88,146.87,205.46516589]
[1751745128292,13.17711873,146.88,146.87,202.4471]
[1751745128487,8.54237927,146.88,146.87,202.4471]
[1751745128689,9.82386589,146.9,146.87,202.4471]
[1751745128886,18.27094541,146.89,146.87,202.4471]
[1751745129083,8.55364208,146.88,146.87,202.4471]
[1751745129392,9.82386589,146.9,146.87,202.4471]
[1751745129588,18.27062228,146.89,146.87,202.4471]
[1751745129794,9.82386589,146.9,146.87,202.4471]
[1751745129990,18.27062818,146.89,146.87,202.4471]
[1751745130191,13.18694345,146.88,146.87,202.4471]
[1751745132097,13.18694345,146.88,146.87,6.8071]
[1751745132399,13.18694345,146.88,146.87,202.4471]
[1751745132896,8.5534231,146.88,146.87,195.64]
[1751745133096,18.22359985,146.88,146.87,195.64]
[1751745133696,18.22359985,146.88,146.86,6.8073]
[1751745133893,9.82446589,146.89,146.87,195.64]
[1751745134095,18.21356929,146.88,146.87,195.64]
[1751745134999,18.21291374,146.88,146.87,195.64]
[1751745135200,18.21339032,146.88,146.87,195.64]
[1751745139203,20.65723827,146.88,146.87,195.64]
[1751745140405,20.65723827,146.88,146.87,202.4471]
[1751745140605,20.65723827,146.88,146.87,6.8071]
[1751745142804,18.21339032,146.88,146.87,6.8071]
[1751745145208,20.65738174,146.88,146.87,6.8071]
[1751745145508,20.65738136,146.88,146.87,6.8071]
[1751745146807,16.04554303,146.88,146.87,6.8071]
[1751745147011,20.6634709,146.88,146.87,6.8071]
[1751745147508,20.6634709,146.88,146.87,202.4271]
[1751745149811,20.66369327,146.88,146.87,202.4271]
[1751745150111,20.6637028,146.88,146.87,202.4271]
[1751745151912,18.21947986,146.88,146.87,202.4271]
[1751745154215,20.66426975,146.88,146.87,202.4271]
[1751745155210,8.54363976,146.88,146.87,205.44516589]
[1751745155416,9.82346589,146.91,146.88,6.8065]
[1751745155611,18.2015921,146.9,146.88,6.8065]
[1751745155811,8.53409261,146.89,146.88,6.8065]
[1751745157313,18.20016711,146.89,146.88,6.8065]
[1751745158614,13.57169245,146.89,146.88,6.8065]
[1751745158819,18.20020316,146.89,146.88,6.8065]
[1751745164522,18.22590992,146.89,146.88,6.8065]
[1751745166826,13.16260332,146.89,146.88,9.82456589]
[1751745172926,13.16260332,146.89,146.88,195.58]
[1751745173129,18.24466382,146.89,146.88,195.58]
[1751745173525,18.24466382,146.89,146.88,202.3866]
[1751745176426,18.24466382,146.89,146.88,195.58]
[1751745176632,8.53409261,146.89,146.88,195.58]
[1751745179330,15.34029261,146.89,146.86,6.8073]
[1751745179541,11.01625652,146.88,146.87,195.56]
[1751745180038,20.84179279,146.88,146.87,195.56]
[1751745180431,20.84286501,146.88,146.87,195.56]
[1751745180934,20.84286501,146.88,146.86,195.56]
[1751745181133,11.58546825,146.87,146.86,195.56]
[1751745182437,8.56545976,146.87,146.86,195.56]
[1751745182644,18.26112473,146.87,146.86,195.56]
[1751745182943,13.63511628,146.87,146.86,195.56]
[1751745183134,18.26112518,146.87,146.85,53.1078]
[1751745183333,9.82660849,146.88,146.86,195.56]
[1751745183638,18.26089937,146.87,146.86,195.56]
[1751745185738,13.19140928,146.87,146.86,195.56]
[1751745187042,13.19140928,146.87,146.85,53.1078]
[1751745187246,9.82710849,146.87,146.86,195.56]
[1751745187442,23.6484553,146.87,146.85,46.3]
[1751745187745,6.8081,146.85,146.81,49.30000849]
[1751745187942,4.62557375,146.84,146.82,195.56]
[1751745188142,3.02000849,146.85,146.81,49.30000849]
[1751745188143,3.02000849,146.85,146.83,6.8089]
[1751745188343,4.60443844,146.84,146.83,6.8089]
[1751745188846,4.60443844,146.84,146.83,202.3689]
[1751745189343,3.02000849,146.85,146.83,202.3689]
[1751745189944,9.82800849,146.85,146.82,6.8092]
[1751745190245,9.82800849,146.85,146.83,195.56]
[1751745190746,9.82800849,146.85,146.83,202.3689]
[1751745191945,9.82800849,146.85,146.83,6.8089]
[1751745192141,9.82800849,146.85,146.83,195.56]
[1751745192641,9.54339929,146.88,146.81,6.8098]
[1751745192642,9.82860849,146.84,146.81,6.8098]
[1751745192946,3.02000849,146.84,146.82,195.56]
[1751745193143,18.0647136,146.83,146.82,195.56]
[1751745193446,8.48945423,146.83,146.82,195.56]
[1751745193835,13.06350452,146.83,146.82,195.56]
[1751745194238,8.48945423,146.83,146.82,195.56]
[1751745194440,19.87083477,146.83,146.82,195.58]
[1751745194640,22.89084326,146.83,146.82,195.58]
[1751745195247,18.31836272,146.83,146.82,195.58]
[1751745196348,18.31836272,146.83,146.81,6.8099]
[1751745196552,9.82890849,146.83,146.82,195.56]
[1751745196755,18.29722947,146.83,146.82,195.56]
[1751745196943,18.29722947,146.83,146.82,195.58]
[1751745198151,9.82890849,146.83,146.82,195.58]
[1751745198949,9.82890849,146.83,146.8,53.0901]
[1751745199150,9.82890849,146.83,146.81,202.3898]
[1751745201354,9.82890849,146.83,146.81,195.58]
[1751745201764,6.8094,146.82,146.81,195.58]
[1751745202652,9.82940849,146.82,146.81,195.58]
[1751745203058,9.82940849,146.82,146.8,46.28]
[1751745203358,9.82940849,146.82,146.8,241.86]
[1751745204050,9.82940849,146.82,146.79,6.8106]
[1751745204352,2.3916,146.84,146.79,195.58]
[1751745204353,3.02000849,146.81,146.79,195.58]
[1751745204850,9.83000849,146.81,146.79,195.58]
[1751745207161,3.02000849,146.81,146.77,6.8116]
[1751745207459,3.02000849,146.83,146.79,3.02000849]
[1751745208458,6.8094,146.82,146.79,9.83060849]
[1751745212556,6.8094,146.82,146.79,6.8106]
[1751745212861,6.8094,146.82,146.79,9.83060849]
[1751745214171,2.3916,146.84,146.79,3.02000849]
[1751745214469,2.3916,146.84,146.8,3.02000849]
[1751745215568,2.3916,146.84,146.81,6.8096]
[1751745215767,5.41160849,146.84,146.81,6.8096]
[1751745216267,8.41384913,146.83,146.81,6.8096]
[1751745216468,5.41160849,146.84,146.81,6.8096]
[1751745216669,15.22284913,146.83,146.81,6.8096]
[1751745216869,6.809,146.83,146.81,6.8096]
[1751745219366,6.809,146.83,146.8,6.8101]
[1751745220972,4.6728,146.86,146.8,3.02000849]
[1751745221272,8.43634875,146.85,146.82,3.02000849]
[1751745221471,3.02000849,146.86,146.82,3.02000849]
[1751745221675,8.43883686,146.85,146.82,3.02000849]
[1751745221867,3.02000849,146.86,146.82,3.02000849]
[1751745222069,8.43883686,146.85,146.82,3.02000849]
[1751745222270,3.02000849,146.86,146.82,3.02000849]
[1751745222463,13.00608532,146.85,146.82,3.02000849]
[1751745222667,9.82800849,146.86,146.83,6.8087]
[1751745222865,13.00608532,146.85,146.83,6.8087]
[1751745223068,9.82800849,146.86,146.83,6.8087]
[1751745223265,13.00915152,146.85,146.83,6.8087]
[1751745223468,9.82800849,146.86,146.83,6.8087]
[1751745223677,13.01092631,146.85,146.83,6.8087]
[1751745223877,9.82800849,146.86,146.83,6.8087]
[1751745224073,19.81892631,146.85,146.83,6.8087]
[1751745224274,6.808,146.85,146.83,6.8087]
[1751745226478,9.82780849,146.86,146.83,6.8087]
[1751745226679,13.03712867,146.85,146.83,6.8087]
[1751745226879,9.82780849,146.86,146.83,6.8087]
[1751745227080,13.0368102,146.85,146.83,6.8087]
[1751745227276,9.82780849,146.86,146.83,6.8087]
[1751745227476,8.47525288,146.85,146.83,6.8087]
[1751745227680,9.82780849,146.86,146.83,6.8087]
[1751745227981,13.04886389,146.85,146.83,6.8087]
[1751745228181,9.82780849,146.86,146.83,6.8087]
[1751745228370,18.01829666,146.85,146.83,6.8087]
[1751745228575,9.82780849,146.86,146.83,6.8087]
[1751745228775,18.01854811,146.85,146.83,6.8087]
[1751745229073,3.02000849,146.86,146.84,6.8083]
[1751745229273,18.02075023,146.85,146.84,6.8083]
[1751745230177,13.05429388,146.85,146.84,6.8083]
[1751745230482,18.02047448,146.85,146.84,6.8083]
[1751745230682,18.02290691,146.85,146.84,6.8083]
[1751745231071,20.43947293,146.85,146.84,6.8083]
[1751745231573,9.82680849,146.88,146.85,6.8077]
[1751745231879,20.46365282,146.87,146.85,6.8077]
[1751745232081,8.48370721,146.86,146.85,6.8077]
[1751745232583,13.06694133,146.86,146.85,6.8077]
[1751745232783,8.48370721,146.86,146.85,6.8077]
[1751745232988,13.06694133,146.86,146.85,6.8077]
[1751745233285,8.48370721,146.86,146.85,6.8077]
[1751745234589,8.48370721,146.86,146.85,9.82770849]
[1751745234780,8.49341234,146.86,146.85,9.82770849]
[1751745234980,6.8063,146.89,146.86,6.8072]
[1751745235278,18.05343451,146.88,146.86,9.82720849]
[1751745235477,8.49288655,146.87,146.86,9.82720849]
[1751745236183,9.82590849,146.9,146.87,6.8071]
[1751745236386,20.47321273,146.89,146.87,6.8071]
[1751745236576,13.06758154,146.88,146.87,6.8071]
[1751745237486,13.06758154,146.88,146.87,9.82710849]
[1751745238694,13.06758154,146.88,146.87,6.8071]
[1751745239490,8.48869426,146.88,146.87,6.8071]
[1751745243191,6.8058,146.9,146.87,6.8071]
[1751745243383,18.12035837,146.89,146.87,6.8071]
[1751745243586,6.8058,146.9,146.87,6.8071]
[1751745243787,18.11989134,146.89,146.87,6.8071]
[1751745243989,6.8058,146.9,146.87,6.8071]
[1751745244285,13.11191382,146.89,146.87,6.8071]
[1751745244489,6.8058,146.9,146.87,6.8071]
[1751745244689,13.12754314,146.89,146.87,6.8071]
[1751745244879,6.8058,146.9,146.87,6.8071]
[1751745245085,13.12754397,146.89,146.87,6.8071]
[1751745245390,6.8058,146.9,146.87,6.8071]
[1751745245590,8.51093332,146.89,146.87,6.8071]
[1751745245890,6.8058,146.9,146.87,6.8071]
[1751745246091,8.51093332,146.89,146.87,6.8071]
[1751745246391,6.8058,146.9,146.87,6.8071]
[1751745246586,8.50963027,146.89,146.87,9.82710849]
[1751745246786,9.82550849,146.91,146.88,6.8066]
[1751745246988,18.11643927,146.9,146.88,6.8066]
[1751745247192,8.50963027,146.89,146.88,6.8066]
[1751745247989,9.82550849,146.91,146.88,6.8066]
[1751745248284,8.50830206,146.9,146.88,6.8066]
[1751745248491,9.82550849,146.91,146.88,6.8066]
[1751745248681,8.5069916,146.9,146.88,6.8066]
[1751745248879,9.82550849,146.91,146.88,6.8066]
[1751745249090,8.5069916,146.9,146.88,6.8066]
[1751745249289,9.82550849,146.91,146.88,6.8066]
[1751745249487,8.50586267,146.9,146.88,6.8066]
[1751745249687,9.82550849,146.91,146.88,6.8066]
[1751745249888,8.50586267,146.9,146.88,6.8066]
[1751745250088,9.82550849,146.91,146.88,6.8066]
[1751745250290,8.50507456,146.9,146.88,6.8066]
[1751745250479,9.82550849,146.91,146.88,6.8066]
[1751745250680,8.50507456,146.9,146.88,6.8066]
[1751745250885,9.82550849,146.91,146.88,6.8066]
[1751745252693,6.8055,146.91,146.88,6.8066]
[1751745253797,8.50284414,146.9,146.88,6.8066]
[1751745254097,6.8055,146.91,146.88,6.8066]
[1751745254293,8.5033489,146.9,146.88,6.8066]
[1751745254495,6.8058,146.9,146.87,6.8068]
[1751745257598,3.02000849,146.89,146.86,46.26]
[1751745258200,9.82640849,146.89,146.86,53.0673]
[1751745259001,6.8067,146.88,146.86,46.26]
[1751745259407,3.02000849,146.88,146.86,46.26]
[1751745259901,6.8071,146.87,146.86,46.26]
[1751745261704,9.82710849,146.87,146.84,6.8084]
[1751745267211,8.5146144,146.86,146.84,6.8084]
[1751745267411,9.82710849,146.87,146.84,6.8084]
[1751745267611,8.51494455,146.86,146.84,6.8084]
[1751745267811,9.82710849,146.87,146.84,6.8084]
[1751745268112,8.51494455,146.86,146.84,6.8084]
[1751745268312,9.82710849,146.87,146.84,6.8084]
[1751745268514,8.51623795,146.86,146.84,6.8084]
[1751745268713,9.82710849,146.87,146.84,6.8084]
[1751745268912,8.51623795,146.86,146.84,6.8084]
[1751745269113,2.3641,146.89,146.84,3.02000849]
[1751745269313,23.56705155,146.88,146.84,3.02000849]
[1751745269515,13.13190816,146.87,146.84,3.02000849]
[1751745269710,8.51763799,146.86,146.85,9.82800849]
[1751745270518,5.38410849,146.89,146.86,6.8072]
[1751745270714,20.54269093,146.88,146.86,6.8072]
[1751745270910,13.12523444,146.87,146.86,6.8072]
[1751745271111,18.12340671,146.87,146.86,6.8072]
[1751745271318,18.12352867,146.87,146.86,6.8072]
[1751745272123,18.12352867,146.87,146.85,6.8079]
[1751745272312,4.61566815,146.86,146.85,6.8079]
[1751745272809,3.02000849,146.88,146.86,6.8073]
[1751745273012,18.11780738,146.87,146.86,6.8073]
[1751745274121,18.11948794,146.87,146.86,6.8073]
[1751745275216,20.53932221,146.87,146.86,6.8073]
[1751745277016,20.54241358,146.87,146.86,6.8073]
[1751745278124,20.54312785,146.87,146.86,6.8073]
[1751745281130,18.12257931,146.87,146.86,6.8073]
[1751745281322,20.54324628,146.87,146.86,6.8073]
[1751745281517,20.54324628,146.87,146.86,9.82730849]
[1751745281725,18.12257931,146.87,146.86,9.82730849]
[1751745282530,20.54315165,146.87,146.86,9.82730849]
[1751745283028,20.54617459,146.87,146.86,9.82730849]
[1751745283829,18.12560225,146.87,146.86,9.82730849]
[1751745288336,18.12560225,146.87,146.86,6.8073]
[1751745291138,9.61258598,146.87,146.86,6.8073]
[1751745291339,18.15271623,146.87,146.86,6.8073]
[1751745293340,20.57942736,146.87,146.86,6.8073]
[1751745295344,20.57198657,146.87,146.86,6.8073]
[1751745297743,18.14527544,146.87,146.86,6.8073]
[1751745297945,20.57281483,146.87,146.86,6.8073]
[1751745300541,23.59282332,146.87,146.85,6.8078]
[1751745300845,18.14527544,146.86,146.85,6.8078]
[1751745305754,18.21447644,146.86,146.85,6.8078]
[1751745307452,20.64231441,146.86,146.85,6.8078]
[1751745310959,20.64231441,146.86,146.85,9.82780849]
[1751745314667,15.58181409,146.86,146.85,9.82780849]
[1751745314866,20.63230396,146.86,146.85,9.82780849]
[1751745315266,18.20337554,146.86,146.85,9.82780849]
[1751745315465,20.63237298,146.86,146.85,9.82780849]
[1751745319568,20.63237298,146.86,146.85,6.8078]
[1751745320769,20.62375869,146.86,146.85,6.8078]
[1751745322270,18.19476125,146.86,146.85,6.8078]
[1751745324768,13.15397612,146.86,146.85,6.8078]
[1751745324973,18.21828361,146.86,146.85,6.8078]
[1751745325776,20.64744358,146.86,146.85,6.8078]
[1751745331880,18.21828361,146.86,146.85,6.8078]
[1751745332981,18.21828361,146.86,146.85,9.82728875]
[1751745333783,18.21828361,146.86,146.85,9.82691388]
[1751745339690,18.21828361,146.86,146.85,6.8078]
[1751745339990,18.21828361,146.86,146.85,9.82691388]
[1751745342893,18.23109781,146.86,146.85,9.82691388]
[1751745347596,18.23109781,146.86,146.85,6.8078]
[1751745348401,20.66015726,146.86,146.85,6.8078]
[1751745350096,20.66015726,146.86,146.85,9.82691388]
[1751745355800,20.66015726,146.86,146.85,9.82690765]
[1751745356402,20.67653486,146.86,146.85,9.82690765]
[1751745359199,20.67653486,146.86,146.85,6.8078]
[1751745359405,20.67654245,146.86,146.85,6.8078]
[1751745360404,20.67661424,146.86,146.85,6.8078]
[1751745361401,20.67319124,146.86,146.85,6.8078]
[1751745364307,20.67281197,146.86,146.85,6.8078]
[1751745365401,6.808,146.85,146.84,46.24]
[1751745365707,23.69235038,146.85,146.84,241.58]
[1751745365901,23.69235038,146.85,146.84,46.24]
[1751745366103,23.69235038,146.85,146.84,241.58]
[1751745366505,23.69235038,146.85,146.84,248.3885]
[1751745367206,19.05100302,146.85,146.84,46.24]
[1751745367408,23.69215519,146.85,146.84,241.58]
[1751745368210,23.69215519,146.85,146.84,46.24]
[1751745368510,23.69215519,146.85,146.84,241.58]
[1751745369009,23.69215519,146.85,146.83,6.8088]
[1751745369205,20.67263595,146.84,146.83,202.1488]
[1751745369410,23.69215519,146.84,146.83,195.34]
[1751745370411,23.68888162,146.84,146.83,195.34]
[1751745370715,20.66936238,146.84,146.83,202.1489]
[1751745371010,18.21602275,146.84,146.83,202.1489]
[1751745371205,18.21602275,146.84,146.83,6.8089]
[1751745371413,18.21602275,146.84,146.83,202.1489]
[1751745371610,18.21602275,146.84,146.83,205.16841924]
[1751745371805,9.6979747,146.84,146.83,205.16841924]
[1751745372312,3.01951924,146.87,146.84,6.808]
[1751745372515,20.53032375,146.86,146.83,198.35951924]
[1751745372809,18.11046438,146.85,146.83,198.35951924]
[1751745373010,3.01951924,146.87,146.84,6.8081]
[1751745373206,20.53034482,146.86,146.84,6.8081]
[1751745373408,18.11048603,146.85,146.84,6.8081]
[1751745375006,13.09970675,146.85,146.84,6.8081]
[1751745380720,8.49828307,146.85,146.84,6.8081]
[1751745381316,13.10962364,146.85,146.84,6.8081]
[1751745383220,4.61134057,146.85,146.84,6.8081]
[1751745383522,13.13035025,146.85,146.84,6.8081]
[1751745385228,13.12429432,146.85,146.84,6.8081]
[1751745385929,4.60528464,146.85,146.84,6.8081]
[1751745386131,13.1246968,146.85,146.84,6.8081]
[1751745388232,13.1246968,146.85,146.83,248.3488]
[1751745388432,9.82671924,146.87,146.83,251.36831924]
[1751745388733,20.5904206,146.86,146.83,251.36831924]
[1751745388930,13.13652138,146.85,146.83,251.36831924]
[1751745389134,9.82671924,146.87,146.83,251.36831924]
[1751745389335,20.59067647,146.86,146.83,251.36831924]
[1751745389535,18.16907607,146.85,146.83,251.36831924]
[1751745389736,9.82671924,146.87,146.83,251.36831924]
[1751745389936,20.59100965,146.86,146.83,251.36831924]
[1751745390129,18.16938823,146.85,146.83,251.36831924]
[1751745390332,9.82671924,146.87,146.83,251.36831924]
[1751745390530,20.59166034,146.86,146.83,251.36831924]
[1751745390826,18.16995924,146.85,146.83,251.36831924]
[1751745391026,9.82671924,146.87,146.83,251.36831924]
[1751745391229,20.59166034,146.86,146.83,251.36831924]
[1751745391427,18.16995924,146.85,146.83,251.36831924]
[1751745391625,9.82671924,146.87,146.83,251.36831924]
[1751745391828,20.59237554,146.86,146.83,251.36831924]
[1751745392028,18.17058709,146.85,146.83,251.36831924]
[1751745392228,9.82671924,146.87,146.83,251.36831924]
[1751745392430,20.59297508,146.86,146.83,251.36831924]
[1751745392626,18.17109119,146.85,146.83,248.3488]
[1751745392829,3.01951924,146.86,146.83,248.3488]
[1751745392830,13.13804521,146.84,146.83,248.3488]